{"text_format":"1","workbook":"xlsx","n_sheets":4,"sheets":["Titulní list","Seznam kabelů","Návod na vyplnění","Číselníky"],"not_rendered":{"charts":0,"images":0,"macros":1,"external_links":1,"defined_names":5,"comments":0,"pivot_tables":0},"unopened":[],"bounds":{"document_bytes":16777216,"sheet_cells":100000,"rows_first":2000,"rows_last":500,"rows_between":2000,"halvings":0,"cell_chars":16384,"cell_head_chars":4096},"cells_cut":0,"cells_raw":0,"read":"whole","date_system":"1900"}

{"sheet":"Titulní list","index":0,"n_rows":38,"n_cols":82,"rows_kept":38,"cut":false,"hidden":false,"merged":[[13,3,13,19],[16,3,16,19],[16,20,18,53],[37,3,40,70],[5,81,7,81],[1,3,1,70],[1,79,2,82],[4,3,4,19],[4,20,4,36],[4,37,4,53],[4,54,4,70],[5,3,7,19],[5,20,7,36],[5,37,7,53],[5,80,7,80],[10,9,11,18],[10,26,11,35],[31,3,31,20],[31,21,31,38],[31,39,31,44],[31,45,31,70],[19,3,19,19],[19,54,19,62],[20,20,22,53],[20,63,21,70],[23,3,23,19],[23,54,23,62],[23,63,24,70],[24,16,27,53],[25,54,25,62],[36,3,36,70],[32,3,33,20],[32,21,33,38],[32,39,33,44],[32,45,33,70],[5,54,5,70],[29,80,34,81],[25,63,26,70],[34,39,34,44],[27,54,27,62],[27,63,28,70],[29,54,30,62],[29,63,30,70],[14,63,16,70],[13,20,15,53],[13,54,13,62],[9,54,12,70],[10,43,11,52]]}
[]
[null,null,null,"Titulní list",null,null,null,null,null,null,null,null,null,null,null,null,null,null,null,null,null,null,null,null,null,null,null,null,null,null,null,null,null,null,null,null,null,null,null,null,null,null,null,null,null,null,null,null,null,null,null,null,null,null,null,null,null,null,null,null,null,null,null,null,null,null,null,null,null,null,null,null,null,null,null,null,null,null,null,"Při vyplňování položek Titulního listu postupujte podle pokynů uvedených ve \nStandardu ČEZ_ST_0093 (Požadavky na projektovou a související dokumentaci)"]
[]
[]
[null,null,null,"VYPRACOVAL:",null,null,null,null,null,null,null,null,null,null,null,null,null,null,null,null,"KONTROLOVAL:",null,null,null,null,null,null,null,null,null,null,null,null,null,null,null,null,"HIP:",null,null,null,null,null,null,null,null,null,null,null,null,null,null,null,null,"PROJEKTOVÁ FIRMA:"]
[null,null,null,{"$f":"CD9","v":" "},null,null,null,null,null,null,null,null,null,null,null,null,null,null,null,null,{"$f":"CD10","v":" "},null,null,null,null,null,null,null,null,null,null,null,null,null,null,null,null,{"$f":"CD11","v":" "},null,null,null,null,null,null,null,null,null,null,null,null,null,null,null,null,"Logo:",null,null,null,null,null,null,null,null,null,null,null,null,null,null,null,null,null,null,null,null,null,null,null,null,null,"Položka Titulního listu","Údaje vyplněné v tomto sloupci jsou automaticky přenášeny na příslušné místo v Titulním Listu\nŘÁDKY VYPLŇUJTE POSTUPNĚ SHORA DOLŮ"]
[]
[]
[null,null,null,null,null,null,null,null,null,null,null,null,null,null,null,null,null,null,null,null,null,null,null,null,null,null,null,null,null,null,null,null,null,null,null,null,null,null,null,null,null,null,null,null,null,null,null,null,null,null,null,null,null,null,null,null,null,null,null,null,null,null,null,null,null,null,null,null,null,null,null,null,null,null,null,null,null,null,null,null,"VYPRACOVAL:"," "]
[null,null,null,"INVESTOR:",null,null,null,null,null,null,null,null,null,null,null,null,null,null,null,null,"LOKALITA:",null,null,null,null,null,null,null,null,null,null,null,null,null,null,null,null,"DATUM:",null,null,null,null,null,null,null,null,null,null,null,null,null,null,null,null,{"$f":"CD12","v":" "},null,null,null,null,null,null,null,null,null,null,null,null,null,null,null,null,null,null,null,null,null,null,null,null,null,"KONTROLOVAL:"," "]
[null,null,null,null,null,null,null,null,null,{"$f":"CD13","v":" "},null,null,null,null,null,null,null,null,null,null,null,null,null,null,null,null,{"$f":"CD14","v":" "},null,null,null,null,null,null,null,null,null,null,null,null,null,null,null,null,{"$f":"CD15","v":" "},null,null,null,null,null,null,null,null,null,null,null,null,null,null,null,null,null,null,null,null,null,null,null,null,null,null,null,null,null,null,null,null,null,null,null,null,"HIP:"," "]
[null,null,null,null,null,null,null,null,null,null,null,null,null,null,null,null,null,null,null,null,null,null,null,null,null,null,null,null,null,null,null,null,null,null,null,null,null,null,null,null,null,null,null,null,null,null,null,null,null,null,null,null,null,null,null,null,null,null,null,null,null,null,null,null,null,null,null,null,null,null,null,null,null,null,null,null,null,null,null,null,"PROJEKTOVÁ FIRMA:"," "]
[null,null,null,null,null,null,null,null,null,null,null,null,null,null,null,null,null,null,null,null,null,null,null,null,null,null,null,null,null,null,null,null,null,null,null,null,null,null,null,null,null,null,null,null,null,null,null,null,null,null,null,null,null,null,null,null,null,null,null,null,null,null,null,null,null,null,null,null,null,null,null,null,null,null,null,null,null,null,null,null,"INVESTOR:"," "]
[null,null,null,"ČÍSLO A NÁZEV AKCE:",null,null,null,null,null,null,null,null,null,null,null,null,null,null,null,null,{"$f":"CD16","v":" "},null,null,null,null,null,null,null,null,null,null,null,null,null,null,null,null,null,null,null,null,null,null,null,null,null,null,null,null,null,null,null,null,null,"PARE:",null,null,null,null,null,null,null,null,null,null,null,null,null,null,null,null,null,null,null,null,null,null,null,null,null,"LOKALITA:"," "]
[null,null,null,null,null,null,null,null,null,null,null,null,null,null,null,null,null,null,null,null,null,null,null,null,null,null,null,null,null,null,null,null,null,null,null,null,null,null,null,null,null,null,null,null,null,null,null,null,null,null,null,null,null,null,null,null,null,null,null,null,null,null,null,null,null,null,null,null,null,null,null,null,null,null,null,null,null,null,null,null,"DATUM:"," "]
[null,null,null,null,null,null,null,null,null,null,null,null,null,null,null,null,null,null,null,null,null,null,null,null,null,null,null,null,null,null,null,null,null,null,null,null,null,null,null,null,null,null,null,null,null,null,null,null,null,null,null,null,null,null,null,null,null,null,null,null,null,null,null,null,null,null,null,null,null,null,null,null,null,null,null,null,null,null,null,null,"ČÍSLO A NÁZEV AKCE:"," "]
[null,null,null,"ČÍSLO A NÁZEV SO / DPS:",null,null,null,null,null,null,null,null,null,null,null,null,null,null,null,null,{"$f":"CD17","v":" "},null,null,null,null,null,null,null,null,null,null,null,null,null,null,null,null,null,null,null,null,null,null,null,null,null,null,null,null,null,null,null,null,null,null,null,null,null,null,null,null,null,null,null,null,null,null,null,null,null,null,null,null,null,null,null,null,null,null,null,"ČÍSLO A NÁZEV SO / DPS:"," "]
[null,null,null,null,null,null,null,null,null,null,null,null,null,null,null,null,null,null,null,null,null,null,null,null,null,null,null,null,null,null,null,null,null,null,null,null,null,null,null,null,null,null,null,null,null,null,null,null,null,null,null,null,null,null,null,null,null,null,null,null,null,null,null,null,null,null,null,null,null,null,null,null,null,null,null,null,null,null,null,null,"SLOŽKA:"," "]
[null,null,null,null,null,null,null,null,null,null,null,null,null,null,null,null,null,null,null,null,null,null,null,null,null,null,null,null,null,null,null,null,null,null,null,null,null,null,null,null,null,null,null,null,null,null,null,null,null,null,null,null,null,null,null,null,null,null,null,null,null,null,null,null,null,null,null,null,null,null,null,null,null,null,null,null,null,null,null,null,"PARE:","při tisku zůstane prázdné - očíslujte ručně dle počtu výtisků"]
[null,null,null,"SLOŽKA:",null,null,null,null,null,null,null,null,null,null,null,null,null,null,null,null,null,null,null,null,null,null,null,null,null,null,null,null,null,null,null,null,null,null,null,null,null,null,null,null,null,null,null,null,null,null,null,null,null,null,"STUPEŇ:",null,null,null,null,null,null,null,null,null,null,null,null,null,null,null,null,null,null,null,null,null,null,null,null,null,"STUPEŇ:"," "]
[null,null,null,null,null,null,null,null,null,null,null,null,null,null,null,null,null,null,null,null,{"$f":"CD18","v":" "},null,null,null,null,null,null,null,null,null,null,null,null,null,null,null,null,null,null,null,null,null,null,null,null,null,null,null,null,null,null,null,null,null,null,null,null,null,null,null,null,null,null,{"$f":"CD20","v":" "},null,null,null,null,null,null,null,null,null,null,null,null,null,null,null,null,"POČET LISTŮ:"," "]
[null,null,null,null,null,null,null,null,null,null,null,null,null,null,null,null,null,null,null,null,null,null,null,null,null,null,null,null,null,null,null,null,null,null,null,null,null,null,null,null,null,null,null,null,null,null,null,null,null,null,null,null,null,null,null,null,null,null,null,null,null,null,null,null,null,null,null,null,null,null,null,null,null,null,null,null,null,null,null,null,"POŘ. ČÍSLO:"," "]
[null,null,null,null,null,null,null,null,null,null,null,null,null,null,null,null,null,null,null,null,null,null,null,null,null,null,null,null,null,null,null,null,null,null,null,null,null,null,null,null,null,null,null,null,null,null,null,null,null,null,null,null,null,null,null,null,null,null,null,null,null,null,null,null,null,null,null,null,null,null,null,null,null,null,null,null,null,null,null,null,"TYP / PODTYP:"," "]
[null,null,null,"NÁZEV DOKUMENTU:",null,null,null,null,null,null,null,null,null,null,null,null,null,null,null,null,null,null,null,null,null,null,null,null,null,null,null,null,null,null,null,null,null,null,null,null,null,null,null,null,null,null,null,null,null,null,null,null,null,null,"POČET LISTŮ:",null,null,null,null,null,null,null,null,{"$f":"CD21","v":" "},null,null,null,null,null,null,null,null,null,null,null,null,null,null,null,null,"ZAKÁZKA ČÍSLO:"," "]
[null,null,null,null,null,null,null,null,null,null,null,null,null,null,null,null,"SEZNAM KABELŮ",null,null,null,null,null,null,null,null,null,null,null,null,null,null,null,null,null,null,null,null,null,null,null,null,null,null,null,null,null,null,null,null,null,null,null,null,null,null,null,null,null,null,null,null,null,null,null,null,null,null,null,null,null,null,null,null,null,null,null,null,null,null,null,"DODAVATELSKÉ ČÍSLO:"," "]
[null,null,null,null,null,null,null,null,null,null,null,null,null,null,null,null,null,null,null,null,null,null,null,null,null,null,null,null,null,null,null,null,null,null,null,null,null,null,null,null,null,null,null,null,null,null,null,null,null,null,null,null,null,null,"POŘ. ČÍSLO:",null,null,null,null,null,null,null,null,{"$f":"CD22","v":" "},null,null,null,null,null,null,null,null,null,null,null,null,null,null,null,null,"REVIZE:"," "]
[null,null,null,null,null,null,null,null,null,null,null,null,null,null,null,null,null,null,null,null,null,null,null,null,null,null,null,null,null,null,null,null,null,null,null,null,null,null,null,null,null,null,null,null,null,null,null,null,null,null,null,null,null,null,null,null,null,null,null,null,null,null,null,null,null,null,null,null,null,null,null,null,null,null,null,null,null,null,null,null,"EL. SOUBOR:"," "]
[null,null,null,null,null,null,null,null,null,null,null,null,null,null,null,null,null,null,null,null,null,null,null,null,null,null,null,null,null,null,null,null,null,null,null,null,null,null,null,null,null,null,null,null,null,null,null,null,null,null,null,null,null,null,"TYP / PODTYP:",null,null,null,null,null,null,null,null,{"$f":"CD23","v":" "}]
[]
[null,null,null,null,null,null,null,null,null,null,null,null,null,null,null,null,null,null,null,null,null,null,null,null,null,null,null,null,null,null,null,null,null,null,null,null,null,null,null,null,null,null,null,null,null,null,null,null,null,null,null,null,null,null,"KÓD TŔÍDY DOKUMENTU:",null,null,null,null,null,null,null,null,"MB02",null,null,null,null,null,null,null,null,null,null,null,null,null,null,null,null,"DOPLNĚNÍ ČÍSELNÍKU:\nList \"Číselníky\" obsahuje číselníky používané v tomto formuláři. \nPokud Vám v některém číselníku použitém na listech v tomto sešitu bude chybět položka pro výběr, je možné jí zadat na listu \"Číselníky\" v příslušném číselníku do zeleně podbarvené buňky. Při vyplňování v tomto sešitu jí pak budete moci použít."]
[]
[null,null,null,"ZAKÁZKA ČÍSLO:",null,null,null,null,null,null,null,null,null,null,null,null,null,null,null,null,null,"DODAVATELSKÉ ČÍSLO:",null,null,null,null,null,null,null,null,null,null,null,null,null,null,null,null,null,"REVIZE:",null,null,null,null,null,"EL. SOUBOR:"]
[null,null,null,{"$f":"CD24","v":" "},null,null,null,null,null,null,null,null,null,null,null,null,null,null,null,null,null,{"$f":"CD25","v":" "},null,null,null,null,null,null,null,null,null,null,null,null,null,null,null,null,null,{"$f":"CD26","v":" "},null,null,null,null,null,{"$f":"CD27","v":" "}]
[]
[]
[]
[]
[null,null,null,"Tabulka \"Titulní list\" je zamčená. \nKonkrétní údaje (položky titulního listu) se do ní propíšou po jejich vyplnění v okně napravo. \nModře podbarvená políčka obsahují výběr z nabídky.\nTisk Titulního listu je nastaven:      A4 na výšku, vycentrování vodorovně a přispůsobení listu na jednu stránku. "]

{"sheet":"Seznam kabelů","index":1,"n_rows":1000,"n_cols":17,"rows_kept":1000,"cut":false,"hidden":false,"merged":[[0,2,0,3]]}
[null,null,"Ukázka vyplnění:"]
[null,"Tento sloupec se netiskne","650/1-01-WL0012","CPDex® 1-CXFE-R (J) 5x10 /o/-/","9FS951.4","9DH727","SNB","Ne","Ne","R","O","N",60,"WL","N","N"]
["č. ř.","Kód třídy MATRIO\nvyplní se automaticky","Označení Kabelu","Typ kabelu","Odkud ","Kam ","BS","BT","Klasif. fce","Požár.\nvlastn.","Prostředí","SEIK","Délka [m]","Segregační skupina","Separační skupina","Změna","Poznámka"]
[1,"EE_Kabel / Vedení","1.01-WR0013","PRAFlaGuard F 1x2x0,8 P90-R","1TZ01","10110TZT-201.10","SNB","NE","N-1E","běžný","H","NE",null,"WL","A"]
[2,"EE_Kabel / Vedení"]
[3,"EE_Kabel / Vedení"]
[4,"EE_Kabel / Vedení"]
[5,"EE_Kabel / Vedení"]
[6,"EE_Kabel / Vedení"]
[7,"EE_Kabel / Vedení"]
[8,"EE_Kabel / Vedení"]
[9,"EE_Kabel / Vedení"]
[10,"EE_Kabel / Vedení"]
[11,"EE_Kabel / Vedení"]
[12,"EE_Kabel / Vedení"]
[13,"EE_Kabel / Vedení"]
[14,"EE_Kabel / Vedení"]
[15,"EE_Kabel / Vedení"]
[16,"EE_Kabel / Vedení"]
[17,"EE_Kabel / Vedení"]
[18,"EE_Kabel / Vedení"]
[19,"EE_Kabel / Vedení"]
[20,"EE_Kabel / Vedení"]
[21,"EE_Kabel / Vedení"]
[22,"EE_Kabel / Vedení"]
[23,"EE_Kabel / Vedení"]
[24,"EE_Kabel / Vedení"]
[25,"EE_Kabel / Vedení"]
[26,"EE_Kabel / Vedení"]
[27,"EE_Kabel / Vedení"]
[28,"EE_Kabel / Vedení"]
[29,"EE_Kabel / Vedení"]
[30,"EE_Kabel / Vedení"]
[31,"EE_Kabel / Vedení"]
[32,"EE_Kabel / Vedení"]
[33,"EE_Kabel / Vedení"]
[34,"EE_Kabel / Vedení"]
[35,"EE_Kabel / Vedení"]
[36,"EE_Kabel / Vedení"]
[37,"EE_Kabel / Vedení"]
[38,"EE_Kabel / Vedení"]
[39,"EE_Kabel / Vedení"]
[40,"EE_Kabel / Vedení"]
[41,"EE_Kabel / Vedení"]
[42,"EE_Kabel / Vedení"]
[43,"EE_Kabel / Vedení"]
[44,"EE_Kabel / Vedení"]
[45,"EE_Kabel / Vedení"]
[46,"EE_Kabel / Vedení"]
[47,"EE_Kabel / Vedení"]
[48,"EE_Kabel / Vedení"]
[49,"EE_Kabel / Vedení"]
[50,"EE_Kabel / Vedení"]
[51,"EE_Kabel / Vedení"]
[52,"EE_Kabel / Vedení"]
[53,"EE_Kabel / Vedení"]
[54,"EE_Kabel / Vedení"]
[55,"EE_Kabel / Vedení"]
[56,"EE_Kabel / Vedení"]
[57,"EE_Kabel / Vedení"]
[58,"EE_Kabel / Vedení"]
[59,"EE_Kabel / Vedení"]
[60,"EE_Kabel / Vedení"]
[61,"EE_Kabel / Vedení"]
[62,"EE_Kabel / Vedení"]
[63,"EE_Kabel / Vedení"]
[64,"EE_Kabel / Vedení"]
[65,"EE_Kabel / Vedení"]
[66,"EE_Kabel / Vedení"]
[67,"EE_Kabel / Vedení"]
[68,"EE_Kabel / Vedení"]
[69,"EE_Kabel / Vedení"]
[70,"EE_Kabel / Vedení"]
[71,"EE_Kabel / Vedení"]
[72,"EE_Kabel / Vedení"]
[73,"EE_Kabel / Vedení"]
[74,"EE_Kabel / Vedení"]
[75,"EE_Kabel / Vedení"]
[76,"EE_Kabel / Vedení"]
[77,"EE_Kabel / Vedení"]
[78,"EE_Kabel / Vedení"]
[79,"EE_Kabel / Vedení"]
[80,"EE_Kabel / Vedení"]
[81,"EE_Kabel / Vedení"]
[82,"EE_Kabel / Vedení"]
[83,"EE_Kabel / Vedení"]
[84,"EE_Kabel / Vedení"]
[85,"EE_Kabel / Vedení"]
[86,"EE_Kabel / Vedení"]
[87,"EE_Kabel / Vedení"]
[88,"EE_Kabel / Vedení"]
[89,"EE_Kabel / Vedení"]
[90,"EE_Kabel / Vedení"]
[91,"EE_Kabel / Vedení"]
[92,"EE_Kabel / Vedení"]
[93,"EE_Kabel / Vedení"]
[94,"EE_Kabel / Vedení"]
[95,"EE_Kabel / Vedení"]
[96,"EE_Kabel / Vedení"]
[97,"EE_Kabel / Vedení"]
[98,"EE_Kabel / Vedení"]
[99,"EE_Kabel / Vedení"]
[100,"EE_Kabel / Vedení"]
[101,"EE_Kabel / Vedení"]
[102,"EE_Kabel / Vedení"]
[103,"EE_Kabel / Vedení"]
[104,"EE_Kabel / Vedení"]
[105,"EE_Kabel / Vedení"]
[106,"EE_Kabel / Vedení"]
[107,"EE_Kabel / Vedení"]
[108,"EE_Kabel / Vedení"]
[109,"EE_Kabel / Vedení"]
[110,"EE_Kabel / Vedení"]
[111,"EE_Kabel / Vedení"]
[112,"EE_Kabel / Vedení"]
[113,"EE_Kabel / Vedení"]
[114,"EE_Kabel / Vedení"]
[115,"EE_Kabel / Vedení"]
[116,"EE_Kabel / Vedení"]
[117,"EE_Kabel / Vedení"]
[118,"EE_Kabel / Vedení"]
[119,"EE_Kabel / Vedení"]
[120,"EE_Kabel / Vedení"]
[121,"EE_Kabel / Vedení"]
[122,"EE_Kabel / Vedení"]
[123,"EE_Kabel / Vedení"]
[124,"EE_Kabel / Vedení"]
[125,"EE_Kabel / Vedení"]
[126,"EE_Kabel / Vedení"]
[127,"EE_Kabel / Vedení"]
[128,"EE_Kabel / Vedení"]
[129,"EE_Kabel / Vedení"]
[130,"EE_Kabel / Vedení"]
[131,"EE_Kabel / Vedení"]
[132,"EE_Kabel / Vedení"]
[133,"EE_Kabel / Vedení"]
[134,"EE_Kabel / Vedení"]
[135,"EE_Kabel / Vedení"]
[136,"EE_Kabel / Vedení"]
[137,"EE_Kabel / Vedení"]
[138,"EE_Kabel / Vedení"]
[139,"EE_Kabel / Vedení"]
[140,"EE_Kabel / Vedení"]
[141,"EE_Kabel / Vedení"]
[142,"EE_Kabel / Vedení"]
[143,"EE_Kabel / Vedení"]
[144,"EE_Kabel / Vedení"]
[145,"EE_Kabel / Vedení"]
[146,"EE_Kabel / Vedení"]
[147,"EE_Kabel / Vedení"]
[148,"EE_Kabel / Vedení"]
[149,"EE_Kabel / Vedení"]
[150,"EE_Kabel / Vedení"]
[151,"EE_Kabel / Vedení"]
[152,"EE_Kabel / Vedení"]
[153,"EE_Kabel / Vedení"]
[154,"EE_Kabel / Vedení"]
[155,"EE_Kabel / Vedení"]
[156,"EE_Kabel / Vedení"]
[157,"EE_Kabel / Vedení"]
[158,"EE_Kabel / Vedení"]
[159,"EE_Kabel / Vedení"]
[160,"EE_Kabel / Vedení"]
[161,"EE_Kabel / Vedení"]
[162,"EE_Kabel / Vedení"]
[163,"EE_Kabel / Vedení"]
[164,"EE_Kabel / Vedení"]
[165,"EE_Kabel / Vedení"]
[166,"EE_Kabel / Vedení"]
[167,"EE_Kabel / Vedení"]
[168,"EE_Kabel / Vedení"]
[169,"EE_Kabel / Vedení"]
[170,"EE_Kabel / Vedení"]
[171,"EE_Kabel / Vedení"]
[172,"EE_Kabel / Vedení"]
[173,"EE_Kabel / Vedení"]
[174,"EE_Kabel / Vedení"]
[175,"EE_Kabel / Vedení"]
[176,"EE_Kabel / Vedení"]
[177,"EE_Kabel / Vedení"]
[178,"EE_Kabel / Vedení"]
[179,"EE_Kabel / Vedení"]
[180,"EE_Kabel / Vedení"]
[181,"EE_Kabel / Vedení"]
[182,"EE_Kabel / Vedení"]
[183,"EE_Kabel / Vedení"]
[184,"EE_Kabel / Vedení"]
[185,"EE_Kabel / Vedení"]
[186,"EE_Kabel / Vedení"]
[187,"EE_Kabel / Vedení"]
[188,"EE_Kabel / Vedení"]
[189,"EE_Kabel / Vedení"]
[190,"EE_Kabel / Vedení"]
[191,"EE_Kabel / Vedení"]
[192,"EE_Kabel / Vedení"]
[193,"EE_Kabel / Vedení"]
[194,"EE_Kabel / Vedení"]
[195,"EE_Kabel / Vedení"]
[196,"EE_Kabel / Vedení"]
[197,"EE_Kabel / Vedení"]
[198,"EE_Kabel / Vedení"]
[199,"EE_Kabel / Vedení"]
[200,"EE_Kabel / Vedení"]
[201,"EE_Kabel / Vedení"]
[202,"EE_Kabel / Vedení"]
[203,"EE_Kabel / Vedení"]
[204,"EE_Kabel / Vedení"]
[205,"EE_Kabel / Vedení"]
[206,"EE_Kabel / Vedení"]
[207,"EE_Kabel / Vedení"]
[208,"EE_Kabel / Vedení"]
[209,"EE_Kabel / Vedení"]
[210,"EE_Kabel / Vedení"]
[211,"EE_Kabel / Vedení"]
[212,"EE_Kabel / Vedení"]
[213,"EE_Kabel / Vedení"]
[214,"EE_Kabel / Vedení"]
[215,"EE_Kabel / Vedení"]
[216,"EE_Kabel / Vedení"]
[217,"EE_Kabel / Vedení"]
[218,"EE_Kabel / Vedení"]
[219,"EE_Kabel / Vedení"]
[220,"EE_Kabel / Vedení"]
[221,"EE_Kabel / Vedení"]
[222,"EE_Kabel / Vedení"]
[223,"EE_Kabel / Vedení"]
[224,"EE_Kabel / Vedení"]
[225,"EE_Kabel / Vedení"]
[226,"EE_Kabel / Vedení"]
[227,"EE_Kabel / Vedení"]
[228,"EE_Kabel / Vedení"]
[229,"EE_Kabel / Vedení"]
[230,"EE_Kabel / Vedení"]
[231,"EE_Kabel / Vedení"]
[232,"EE_Kabel / Vedení"]
[233,"EE_Kabel / Vedení"]
[234,"EE_Kabel / Vedení"]
[235,"EE_Kabel / Vedení"]
[236,"EE_Kabel / Vedení"]
[237,"EE_Kabel / Vedení"]
[238,"EE_Kabel / Vedení"]
[239,"EE_Kabel / Vedení"]
[240,"EE_Kabel / Vedení"]
[241,"EE_Kabel / Vedení"]
[242,"EE_Kabel / Vedení"]
[243,"EE_Kabel / Vedení"]
[244,"EE_Kabel / Vedení"]
[245,"EE_Kabel / Vedení"]
[246,"EE_Kabel / Vedení"]
[247,"EE_Kabel / Vedení"]
[248,"EE_Kabel / Vedení"]
[249,"EE_Kabel / Vedení"]
[250,"EE_Kabel / Vedení"]
[251,"EE_Kabel / Vedení"]
[252,"EE_Kabel / Vedení"]
[253,"EE_Kabel / Vedení"]
[254,"EE_Kabel / Vedení"]
[255,"EE_Kabel / Vedení"]
[256,"EE_Kabel / Vedení"]
[257,"EE_Kabel / Vedení"]
[258,"EE_Kabel / Vedení"]
[259,"EE_Kabel / Vedení"]
[260,"EE_Kabel / Vedení"]
[261,"EE_Kabel / Vedení"]
[262,"EE_Kabel / Vedení"]
[263,"EE_Kabel / Vedení"]
[264,"EE_Kabel / Vedení"]
[265,"EE_Kabel / Vedení"]
[266,"EE_Kabel / Vedení"]
[267,"EE_Kabel / Vedení"]
[268,"EE_Kabel / Vedení"]
[269,"EE_Kabel / Vedení"]
[270,"EE_Kabel / Vedení"]
[271,"EE_Kabel / Vedení"]
[272,"EE_Kabel / Vedení"]
[273,"EE_Kabel / Vedení"]
[274,"EE_Kabel / Vedení"]
[275,"EE_Kabel / Vedení"]
[276,"EE_Kabel / Vedení"]
[277,"EE_Kabel / Vedení"]
[278,"EE_Kabel / Vedení"]
[279,"EE_Kabel / Vedení"]
[280,"EE_Kabel / Vedení"]
[281,"EE_Kabel / Vedení"]
[282,"EE_Kabel / Vedení"]
[283,"EE_Kabel / Vedení"]
[284,"EE_Kabel / Vedení"]
[285,"EE_Kabel / Vedení"]
[286,"EE_Kabel / Vedení"]
[287,"EE_Kabel / Vedení"]
[288,"EE_Kabel / Vedení"]
[289,"EE_Kabel / Vedení"]
[290,"EE_Kabel / Vedení"]
[291,"EE_Kabel / Vedení"]
[292,"EE_Kabel / Vedení"]
[293,"EE_Kabel / Vedení"]
[294,"EE_Kabel / Vedení"]
[295,"EE_Kabel / Vedení"]
[296,"EE_Kabel / Vedení"]
[297,"EE_Kabel / Vedení"]
[298,"EE_Kabel / Vedení"]
[299,"EE_Kabel / Vedení"]
[300,"EE_Kabel / Vedení"]
[301,"EE_Kabel / Vedení"]
[302,"EE_Kabel / Vedení"]
[303,"EE_Kabel / Vedení"]
[304,"EE_Kabel / Vedení"]
[305,"EE_Kabel / Vedení"]
[306,"EE_Kabel / Vedení"]
[307,"EE_Kabel / Vedení"]
[308,"EE_Kabel / Vedení"]
[309,"EE_Kabel / Vedení"]
[310,"EE_Kabel / Vedení"]
[311,"EE_Kabel / Vedení"]
[312,"EE_Kabel / Vedení"]
[313,"EE_Kabel / Vedení"]
[314,"EE_Kabel / Vedení"]
[315,"EE_Kabel / Vedení"]
[316,"EE_Kabel / Vedení"]
[317,"EE_Kabel / Vedení"]
[318,"EE_Kabel / Vedení"]
[319,"EE_Kabel / Vedení"]
[320,"EE_Kabel / Vedení"]
[321,"EE_Kabel / Vedení"]
[322,"EE_Kabel / Vedení"]
[323,"EE_Kabel / Vedení"]
[324,"EE_Kabel / Vedení"]
[325,"EE_Kabel / Vedení"]
[326,"EE_Kabel / Vedení"]
[327,"EE_Kabel / Vedení"]
[328,"EE_Kabel / Vedení"]
[329,"EE_Kabel / Vedení"]
[330,"EE_Kabel / Vedení"]
[331,"EE_Kabel / Vedení"]
[332,"EE_Kabel / Vedení"]
[333,"EE_Kabel / Vedení"]
[334,"EE_Kabel / Vedení"]
[335,"EE_Kabel / Vedení"]
[336,"EE_Kabel / Vedení"]
[337,"EE_Kabel / Vedení"]
[338,"EE_Kabel / Vedení"]
[339,"EE_Kabel / Vedení"]
[340,"EE_Kabel / Vedení"]
[341,"EE_Kabel / Vedení"]
[342,"EE_Kabel / Vedení"]
[343,"EE_Kabel / Vedení"]
[344,"EE_Kabel / Vedení"]
[345,"EE_Kabel / Vedení"]
[346,"EE_Kabel / Vedení"]
[347,"EE_Kabel / Vedení"]
[348,"EE_Kabel / Vedení"]
[349,"EE_Kabel / Vedení"]
[350,"EE_Kabel / Vedení"]
[351,"EE_Kabel / Vedení"]
[352,"EE_Kabel / Vedení"]
[353,"EE_Kabel / Vedení"]
[354,"EE_Kabel / Vedení"]
[355,"EE_Kabel / Vedení"]
[356,"EE_Kabel / Vedení"]
[357,"EE_Kabel / Vedení"]
[358,"EE_Kabel / Vedení"]
[359,"EE_Kabel / Vedení"]
[360,"EE_Kabel / Vedení"]
[361,"EE_Kabel / Vedení"]
[362,"EE_Kabel / Vedení"]
[363,"EE_Kabel / Vedení"]
[364,"EE_Kabel / Vedení"]
[365,"EE_Kabel / Vedení"]
[366,"EE_Kabel / Vedení"]
[367,"EE_Kabel / Vedení"]
[368,"EE_Kabel / Vedení"]
[369,"EE_Kabel / Vedení"]
[370,"EE_Kabel / Vedení"]
[371,"EE_Kabel / Vedení"]
[372,"EE_Kabel / Vedení"]
[373,"EE_Kabel / Vedení"]
[374,"EE_Kabel / Vedení"]
[375,"EE_Kabel / Vedení"]
[376,"EE_Kabel / Vedení"]
[377,"EE_Kabel / Vedení"]
[378,"EE_Kabel / Vedení"]
[379,"EE_Kabel / Vedení"]
[380,"EE_Kabel / Vedení"]
[381,"EE_Kabel / Vedení"]
[382,"EE_Kabel / Vedení"]
[383,"EE_Kabel / Vedení"]
[384,"EE_Kabel / Vedení"]
[385,"EE_Kabel / Vedení"]
[386,"EE_Kabel / Vedení"]
[387,"EE_Kabel / Vedení"]
[388,"EE_Kabel / Vedení"]
[389,"EE_Kabel / Vedení"]
[390,"EE_Kabel / Vedení"]
[391,"EE_Kabel / Vedení"]
[392,"EE_Kabel / Vedení"]
[393,"EE_Kabel / Vedení"]
[394,"EE_Kabel / Vedení"]
[395,"EE_Kabel / Vedení"]
[396,"EE_Kabel / Vedení"]
[397,"EE_Kabel / Vedení"]
[398,"EE_Kabel / Vedení"]
[399,"EE_Kabel / Vedení"]
[400,"EE_Kabel / Vedení"]
[401,"EE_Kabel / Vedení"]
[402,"EE_Kabel / Vedení"]
[403,"EE_Kabel / Vedení"]
[404,"EE_Kabel / Vedení"]
[405,"EE_Kabel / Vedení"]
[406,"EE_Kabel / Vedení"]
[407,"EE_Kabel / Vedení"]
[408,"EE_Kabel / Vedení"]
[409,"EE_Kabel / Vedení"]
[410,"EE_Kabel / Vedení"]
[411,"EE_Kabel / Vedení"]
[412,"EE_Kabel / Vedení"]
[413,"EE_Kabel / Vedení"]
[414,"EE_Kabel / Vedení"]
[415,"EE_Kabel / Vedení"]
[416,"EE_Kabel / Vedení"]
[417,"EE_Kabel / Vedení"]
[418,"EE_Kabel / Vedení"]
[419,"EE_Kabel / Vedení"]
[420,"EE_Kabel / Vedení"]
[421,"EE_Kabel / Vedení"]
[422,"EE_Kabel / Vedení"]
[423,"EE_Kabel / Vedení"]
[424,"EE_Kabel / Vedení"]
[425,"EE_Kabel / Vedení"]
[426,"EE_Kabel / Vedení"]
[427,"EE_Kabel / Vedení"]
[428,"EE_Kabel / Vedení"]
[429,"EE_Kabel / Vedení"]
[430,"EE_Kabel / Vedení"]
[431,"EE_Kabel / Vedení"]
[432,"EE_Kabel / Vedení"]
[433,"EE_Kabel / Vedení"]
[434,"EE_Kabel / Vedení"]
[435,"EE_Kabel / Vedení"]
[436,"EE_Kabel / Vedení"]
[437,"EE_Kabel / Vedení"]
[438,"EE_Kabel / Vedení"]
[439,"EE_Kabel / Vedení"]
[440,"EE_Kabel / Vedení"]
[441,"EE_Kabel / Vedení"]
[442,"EE_Kabel / Vedení"]
[443,"EE_Kabel / Vedení"]
[444,"EE_Kabel / Vedení"]
[445,"EE_Kabel / Vedení"]
[446,"EE_Kabel / Vedení"]
[447,"EE_Kabel / Vedení"]
[448,"EE_Kabel / Vedení"]
[449,"EE_Kabel / Vedení"]
[450,"EE_Kabel / Vedení"]
[451,"EE_Kabel / Vedení"]
[452,"EE_Kabel / Vedení"]
[453,"EE_Kabel / Vedení"]
[454,"EE_Kabel / Vedení"]
[455,"EE_Kabel / Vedení"]
[456,"EE_Kabel / Vedení"]
[457,"EE_Kabel / Vedení"]
[458,"EE_Kabel / Vedení"]
[459,"EE_Kabel / Vedení"]
[460,"EE_Kabel / Vedení"]
[461,"EE_Kabel / Vedení"]
[462,"EE_Kabel / Vedení"]
[463,"EE_Kabel / Vedení"]
[464,"EE_Kabel / Vedení"]
[465,"EE_Kabel / Vedení"]
[466,"EE_Kabel / Vedení"]
[467,"EE_Kabel / Vedení"]
[468,"EE_Kabel / Vedení"]
[469,"EE_Kabel / Vedení"]
[470,"EE_Kabel / Vedení"]
[471,"EE_Kabel / Vedení"]
[472,"EE_Kabel / Vedení"]
[473,"EE_Kabel / Vedení"]
[474,"EE_Kabel / Vedení"]
[475,"EE_Kabel / Vedení"]
[476,"EE_Kabel / Vedení"]
[477,"EE_Kabel / Vedení"]
[478,"EE_Kabel / Vedení"]
[479,"EE_Kabel / Vedení"]
[480,"EE_Kabel / Vedení"]
[481,"EE_Kabel / Vedení"]
[482,"EE_Kabel / Vedení"]
[483,"EE_Kabel / Vedení"]
[484,"EE_Kabel / Vedení"]
[485,"EE_Kabel / Vedení"]
[486,"EE_Kabel / Vedení"]
[487,"EE_Kabel / Vedení"]
[488,"EE_Kabel / Vedení"]
[489,"EE_Kabel / Vedení"]
[490,"EE_Kabel / Vedení"]
[491,"EE_Kabel / Vedení"]
[492,"EE_Kabel / Vedení"]
[493,"EE_Kabel / Vedení"]
[494,"EE_Kabel / Vedení"]
[495,"EE_Kabel / Vedení"]
[496,"EE_Kabel / Vedení"]
[497,"EE_Kabel / Vedení"]
[498,"EE_Kabel / Vedení"]
[499,"EE_Kabel / Vedení"]
[500,"EE_Kabel / Vedení"]
[501,"EE_Kabel / Vedení"]
[502,"EE_Kabel / Vedení"]
[503,"EE_Kabel / Vedení"]
[504,"EE_Kabel / Vedení"]
[505,"EE_Kabel / Vedení"]
[506,"EE_Kabel / Vedení"]
[507,"EE_Kabel / Vedení"]
[508,"EE_Kabel / Vedení"]
[509,"EE_Kabel / Vedení"]
[510,"EE_Kabel / Vedení"]
[511,"EE_Kabel / Vedení"]
[512,"EE_Kabel / Vedení"]
[513,"EE_Kabel / Vedení"]
[514,"EE_Kabel / Vedení"]
[515,"EE_Kabel / Vedení"]
[516,"EE_Kabel / Vedení"]
[517,"EE_Kabel / Vedení"]
[518,"EE_Kabel / Vedení"]
[519,"EE_Kabel / Vedení"]
[520,"EE_Kabel / Vedení"]
[521,"EE_Kabel / Vedení"]
[522,"EE_Kabel / Vedení"]
[523,"EE_Kabel / Vedení"]
[524,"EE_Kabel / Vedení"]
[525,"EE_Kabel / Vedení"]
[526,"EE_Kabel / Vedení"]
[527,"EE_Kabel / Vedení"]
[528,"EE_Kabel / Vedení"]
[529,"EE_Kabel / Vedení"]
[530,"EE_Kabel / Vedení"]
[531,"EE_Kabel / Vedení"]
[532,"EE_Kabel / Vedení"]
[533,"EE_Kabel / Vedení"]
[534,"EE_Kabel / Vedení"]
[535,"EE_Kabel / Vedení"]
[536,"EE_Kabel / Vedení"]
[537,"EE_Kabel / Vedení"]
[538,"EE_Kabel / Vedení"]
[539,"EE_Kabel / Vedení"]
[540,"EE_Kabel / Vedení"]
[541,"EE_Kabel / Vedení"]
[542,"EE_Kabel / Vedení"]
[543,"EE_Kabel / Vedení"]
[544,"EE_Kabel / Vedení"]
[545,"EE_Kabel / Vedení"]
[546,"EE_Kabel / Vedení"]
[547,"EE_Kabel / Vedení"]
[548,"EE_Kabel / Vedení"]
[549,"EE_Kabel / Vedení"]
[550,"EE_Kabel / Vedení"]
[551,"EE_Kabel / Vedení"]
[552,"EE_Kabel / Vedení"]
[553,"EE_Kabel / Vedení"]
[554,"EE_Kabel / Vedení"]
[555,"EE_Kabel / Vedení"]
[556,"EE_Kabel / Vedení"]
[557,"EE_Kabel / Vedení"]
[558,"EE_Kabel / Vedení"]
[559,"EE_Kabel / Vedení"]
[560,"EE_Kabel / Vedení"]
[561,"EE_Kabel / Vedení"]
[562,"EE_Kabel / Vedení"]
[563,"EE_Kabel / Vedení"]
[564,"EE_Kabel / Vedení"]
[565,"EE_Kabel / Vedení"]
[566,"EE_Kabel / Vedení"]
[567,"EE_Kabel / Vedení"]
[568,"EE_Kabel / Vedení"]
[569,"EE_Kabel / Vedení"]
[570,"EE_Kabel / Vedení"]
[571,"EE_Kabel / Vedení"]
[572,"EE_Kabel / Vedení"]
[573,"EE_Kabel / Vedení"]
[574,"EE_Kabel / Vedení"]
[575,"EE_Kabel / Vedení"]
[576,"EE_Kabel / Vedení"]
[577,"EE_Kabel / Vedení"]
[578,"EE_Kabel / Vedení"]
[579,"EE_Kabel / Vedení"]
[580,"EE_Kabel / Vedení"]
[581,"EE_Kabel / Vedení"]
[582,"EE_Kabel / Vedení"]
[583,"EE_Kabel / Vedení"]
[584,"EE_Kabel / Vedení"]
[585,"EE_Kabel / Vedení"]
[586,"EE_Kabel / Vedení"]
[587,"EE_Kabel / Vedení"]
[588,"EE_Kabel / Vedení"]
[589,"EE_Kabel / Vedení"]
[590,"EE_Kabel / Vedení"]
[591,"EE_Kabel / Vedení"]
[592,"EE_Kabel / Vedení"]
[593,"EE_Kabel / Vedení"]
[594,"EE_Kabel / Vedení"]
[595,"EE_Kabel / Vedení"]
[596,"EE_Kabel / Vedení"]
[597,"EE_Kabel / Vedení"]
[598,"EE_Kabel / Vedení"]
[599,"EE_Kabel / Vedení"]
[600,"EE_Kabel / Vedení"]
[601,"EE_Kabel / Vedení"]
[602,"EE_Kabel / Vedení"]
[603,"EE_Kabel / Vedení"]
[604,"EE_Kabel / Vedení"]
[605,"EE_Kabel / Vedení"]
[606,"EE_Kabel / Vedení"]
[607,"EE_Kabel / Vedení"]
[608,"EE_Kabel / Vedení"]
[609,"EE_Kabel / Vedení"]
[610,"EE_Kabel / Vedení"]
[611,"EE_Kabel / Vedení"]
[612,"EE_Kabel / Vedení"]
[613,"EE_Kabel / Vedení"]
[614,"EE_Kabel / Vedení"]
[615,"EE_Kabel / Vedení"]
[616,"EE_Kabel / Vedení"]
[617,"EE_Kabel / Vedení"]
[618,"EE_Kabel / Vedení"]
[619,"EE_Kabel / Vedení"]
[620,"EE_Kabel / Vedení"]
[621,"EE_Kabel / Vedení"]
[622,"EE_Kabel / Vedení"]
[623,"EE_Kabel / Vedení"]
[624,"EE_Kabel / Vedení"]
[625,"EE_Kabel / Vedení"]
[626,"EE_Kabel / Vedení"]
[627,"EE_Kabel / Vedení"]
[628,"EE_Kabel / Vedení"]
[629,"EE_Kabel / Vedení"]
[630,"EE_Kabel / Vedení"]
[631,"EE_Kabel / Vedení"]
[632,"EE_Kabel / Vedení"]
[633,"EE_Kabel / Vedení"]
[634,"EE_Kabel / Vedení"]
[635,"EE_Kabel / Vedení"]
[636,"EE_Kabel / Vedení"]
[637,"EE_Kabel / Vedení"]
[638,"EE_Kabel / Vedení"]
[639,"EE_Kabel / Vedení"]
[640,"EE_Kabel / Vedení"]
[641,"EE_Kabel / Vedení"]
[642,"EE_Kabel / Vedení"]
[643,"EE_Kabel / Vedení"]
[644,"EE_Kabel / Vedení"]
[645,"EE_Kabel / Vedení"]
[646,"EE_Kabel / Vedení"]
[647,"EE_Kabel / Vedení"]
[648,"EE_Kabel / Vedení"]
[649,"EE_Kabel / Vedení"]
[650,"EE_Kabel / Vedení"]
[651,"EE_Kabel / Vedení"]
[652,"EE_Kabel / Vedení"]
[653,"EE_Kabel / Vedení"]
[654,"EE_Kabel / Vedení"]
[655,"EE_Kabel / Vedení"]
[656,"EE_Kabel / Vedení"]
[657,"EE_Kabel / Vedení"]
[658,"EE_Kabel / Vedení"]
[659,"EE_Kabel / Vedení"]
[660,"EE_Kabel / Vedení"]
[661,"EE_Kabel / Vedení"]
[662,"EE_Kabel / Vedení"]
[663,"EE_Kabel / Vedení"]
[664,"EE_Kabel / Vedení"]
[665,"EE_Kabel / Vedení"]
[666,"EE_Kabel / Vedení"]
[667,"EE_Kabel / Vedení"]
[668,"EE_Kabel / Vedení"]
[669,"EE_Kabel / Vedení"]
[670,"EE_Kabel / Vedení"]
[671,"EE_Kabel / Vedení"]
[672,"EE_Kabel / Vedení"]
[673,"EE_Kabel / Vedení"]
[674,"EE_Kabel / Vedení"]
[675,"EE_Kabel / Vedení"]
[676,"EE_Kabel / Vedení"]
[677,"EE_Kabel / Vedení"]
[678,"EE_Kabel / Vedení"]
[679,"EE_Kabel / Vedení"]
[680,"EE_Kabel / Vedení"]
[681,"EE_Kabel / Vedení"]
[682,"EE_Kabel / Vedení"]
[683,"EE_Kabel / Vedení"]
[684,"EE_Kabel / Vedení"]
[685,"EE_Kabel / Vedení"]
[686,"EE_Kabel / Vedení"]
[687,"EE_Kabel / Vedení"]
[688,"EE_Kabel / Vedení"]
[689,"EE_Kabel / Vedení"]
[690,"EE_Kabel / Vedení"]
[691,"EE_Kabel / Vedení"]
[692,"EE_Kabel / Vedení"]
[693,"EE_Kabel / Vedení"]
[694,"EE_Kabel / Vedení"]
[695,"EE_Kabel / Vedení"]
[696,"EE_Kabel / Vedení"]
[697,"EE_Kabel / Vedení"]
[698,"EE_Kabel / Vedení"]
[699,"EE_Kabel / Vedení"]
[700,"EE_Kabel / Vedení"]
[701,"EE_Kabel / Vedení"]
[702,"EE_Kabel / Vedení"]
[703,"EE_Kabel / Vedení"]
[704,"EE_Kabel / Vedení"]
[705,"EE_Kabel / Vedení"]
[706,"EE_Kabel / Vedení"]
[707,"EE_Kabel / Vedení"]
[708,"EE_Kabel / Vedení"]
[709,"EE_Kabel / Vedení"]
[710,"EE_Kabel / Vedení"]
[711,"EE_Kabel / Vedení"]
[712,"EE_Kabel / Vedení"]
[713,"EE_Kabel / Vedení"]
[714,"EE_Kabel / Vedení"]
[715,"EE_Kabel / Vedení"]
[716,"EE_Kabel / Vedení"]
[717,"EE_Kabel / Vedení"]
[718,"EE_Kabel / Vedení"]
[719,"EE_Kabel / Vedení"]
[720,"EE_Kabel / Vedení"]
[721,"EE_Kabel / Vedení"]
[722,"EE_Kabel / Vedení"]
[723,"EE_Kabel / Vedení"]
[724,"EE_Kabel / Vedení"]
[725,"EE_Kabel / Vedení"]
[726,"EE_Kabel / Vedení"]
[727,"EE_Kabel / Vedení"]
[728,"EE_Kabel / Vedení"]
[729,"EE_Kabel / Vedení"]
[730,"EE_Kabel / Vedení"]
[731,"EE_Kabel / Vedení"]
[732,"EE_Kabel / Vedení"]
[733,"EE_Kabel / Vedení"]
[734,"EE_Kabel / Vedení"]
[735,"EE_Kabel / Vedení"]
[736,"EE_Kabel / Vedení"]
[737,"EE_Kabel / Vedení"]
[738,"EE_Kabel / Vedení"]
[739,"EE_Kabel / Vedení"]
[740,"EE_Kabel / Vedení"]
[741,"EE_Kabel / Vedení"]
[742,"EE_Kabel / Vedení"]
[743,"EE_Kabel / Vedení"]
[744,"EE_Kabel / Vedení"]
[745,"EE_Kabel / Vedení"]
[746,"EE_Kabel / Vedení"]
[747,"EE_Kabel / Vedení"]
[748,"EE_Kabel / Vedení"]
[749,"EE_Kabel / Vedení"]
[750,"EE_Kabel / Vedení"]
[751,"EE_Kabel / Vedení"]
[752,"EE_Kabel / Vedení"]
[753,"EE_Kabel / Vedení"]
[754,"EE_Kabel / Vedení"]
[755,"EE_Kabel / Vedení"]
[756,"EE_Kabel / Vedení"]
[757,"EE_Kabel / Vedení"]
[758,"EE_Kabel / Vedení"]
[759,"EE_Kabel / Vedení"]
[760,"EE_Kabel / Vedení"]
[761,"EE_Kabel / Vedení"]
[762,"EE_Kabel / Vedení"]
[763,"EE_Kabel / Vedení"]
[764,"EE_Kabel / Vedení"]
[765,"EE_Kabel / Vedení"]
[766,"EE_Kabel / Vedení"]
[767,"EE_Kabel / Vedení"]
[768,"EE_Kabel / Vedení"]
[769,"EE_Kabel / Vedení"]
[770,"EE_Kabel / Vedení"]
[771,"EE_Kabel / Vedení"]
[772,"EE_Kabel / Vedení"]
[773,"EE_Kabel / Vedení"]
[774,"EE_Kabel / Vedení"]
[775,"EE_Kabel / Vedení"]
[776,"EE_Kabel / Vedení"]
[777,"EE_Kabel / Vedení"]
[778,"EE_Kabel / Vedení"]
[779,"EE_Kabel / Vedení"]
[780,"EE_Kabel / Vedení"]
[781,"EE_Kabel / Vedení"]
[782,"EE_Kabel / Vedení"]
[783,"EE_Kabel / Vedení"]
[784,"EE_Kabel / Vedení"]
[785,"EE_Kabel / Vedení"]
[786,"EE_Kabel / Vedení"]
[787,"EE_Kabel / Vedení"]
[788,"EE_Kabel / Vedení"]
[789,"EE_Kabel / Vedení"]
[790,"EE_Kabel / Vedení"]
[791,"EE_Kabel / Vedení"]
[792,"EE_Kabel / Vedení"]
[793,"EE_Kabel / Vedení"]
[794,"EE_Kabel / Vedení"]
[795,"EE_Kabel / Vedení"]
[796,"EE_Kabel / Vedení"]
[797,"EE_Kabel / Vedení"]
[798,"EE_Kabel / Vedení"]
[799,"EE_Kabel / Vedení"]
[800,"EE_Kabel / Vedení"]
[801,"EE_Kabel / Vedení"]
[802,"EE_Kabel / Vedení"]
[803,"EE_Kabel / Vedení"]
[804,"EE_Kabel / Vedení"]
[805,"EE_Kabel / Vedení"]
[806,"EE_Kabel / Vedení"]
[807,"EE_Kabel / Vedení"]
[808,"EE_Kabel / Vedení"]
[809,"EE_Kabel / Vedení"]
[810,"EE_Kabel / Vedení"]
[811,"EE_Kabel / Vedení"]
[812,"EE_Kabel / Vedení"]
[813,"EE_Kabel / Vedení"]
[814,"EE_Kabel / Vedení"]
[815,"EE_Kabel / Vedení"]
[816,"EE_Kabel / Vedení"]
[817,"EE_Kabel / Vedení"]
[818,"EE_Kabel / Vedení"]
[819,"EE_Kabel / Vedení"]
[820,"EE_Kabel / Vedení"]
[821,"EE_Kabel / Vedení"]
[822,"EE_Kabel / Vedení"]
[823,"EE_Kabel / Vedení"]
[824,"EE_Kabel / Vedení"]
[825,"EE_Kabel / Vedení"]
[826,"EE_Kabel / Vedení"]
[827,"EE_Kabel / Vedení"]
[828,"EE_Kabel / Vedení"]
[829,"EE_Kabel / Vedení"]
[830,"EE_Kabel / Vedení"]
[831,"EE_Kabel / Vedení"]
[832,"EE_Kabel / Vedení"]
[833,"EE_Kabel / Vedení"]
[834,"EE_Kabel / Vedení"]
[835,"EE_Kabel / Vedení"]
[836,"EE_Kabel / Vedení"]
[837,"EE_Kabel / Vedení"]
[838,"EE_Kabel / Vedení"]
[839,"EE_Kabel / Vedení"]
[840,"EE_Kabel / Vedení"]
[841,"EE_Kabel / Vedení"]
[842,"EE_Kabel / Vedení"]
[843,"EE_Kabel / Vedení"]
[844,"EE_Kabel / Vedení"]
[845,"EE_Kabel / Vedení"]
[846,"EE_Kabel / Vedení"]
[847,"EE_Kabel / Vedení"]
[848,"EE_Kabel / Vedení"]
[849,"EE_Kabel / Vedení"]
[850,"EE_Kabel / Vedení"]
[851,"EE_Kabel / Vedení"]
[852,"EE_Kabel / Vedení"]
[853,"EE_Kabel / Vedení"]
[854,"EE_Kabel / Vedení"]
[855,"EE_Kabel / Vedení"]
[856,"EE_Kabel / Vedení"]
[857,"EE_Kabel / Vedení"]
[858,"EE_Kabel / Vedení"]
[859,"EE_Kabel / Vedení"]
[860,"EE_Kabel / Vedení"]
[861,"EE_Kabel / Vedení"]
[862,"EE_Kabel / Vedení"]
[863,"EE_Kabel / Vedení"]
[864,"EE_Kabel / Vedení"]
[865,"EE_Kabel / Vedení"]
[866,"EE_Kabel / Vedení"]
[867,"EE_Kabel / Vedení"]
[868,"EE_Kabel / Vedení"]
[869,"EE_Kabel / Vedení"]
[870,"EE_Kabel / Vedení"]
[871,"EE_Kabel / Vedení"]
[872,"EE_Kabel / Vedení"]
[873,"EE_Kabel / Vedení"]
[874,"EE_Kabel / Vedení"]
[875,"EE_Kabel / Vedení"]
[876,"EE_Kabel / Vedení"]
[877,"EE_Kabel / Vedení"]
[878,"EE_Kabel / Vedení"]
[879,"EE_Kabel / Vedení"]
[880,"EE_Kabel / Vedení"]
[881,"EE_Kabel / Vedení"]
[882,"EE_Kabel / Vedení"]
[883,"EE_Kabel / Vedení"]
[884,"EE_Kabel / Vedení"]
[885,"EE_Kabel / Vedení"]
[886,"EE_Kabel / Vedení"]
[887,"EE_Kabel / Vedení"]
[888,"EE_Kabel / Vedení"]
[889,"EE_Kabel / Vedení"]
[890,"EE_Kabel / Vedení"]
[891,"EE_Kabel / Vedení"]
[892,"EE_Kabel / Vedení"]
[893,"EE_Kabel / Vedení"]
[894,"EE_Kabel / Vedení"]
[895,"EE_Kabel / Vedení"]
[896,"EE_Kabel / Vedení"]
[897,"EE_Kabel / Vedení"]
[898,"EE_Kabel / Vedení"]
[899,"EE_Kabel / Vedení"]
[900,"EE_Kabel / Vedení"]
[901,"EE_Kabel / Vedení"]
[902,"EE_Kabel / Vedení"]
[903,"EE_Kabel / Vedení"]
[904,"EE_Kabel / Vedení"]
[905,"EE_Kabel / Vedení"]
[906,"EE_Kabel / Vedení"]
[907,"EE_Kabel / Vedení"]
[908,"EE_Kabel / Vedení"]
[909,"EE_Kabel / Vedení"]
[910,"EE_Kabel / Vedení"]
[911,"EE_Kabel / Vedení"]
[912,"EE_Kabel / Vedení"]
[913,"EE_Kabel / Vedení"]
[914,"EE_Kabel / Vedení"]
[915,"EE_Kabel / Vedení"]
[916,"EE_Kabel / Vedení"]
[917,"EE_Kabel / Vedení"]
[918,"EE_Kabel / Vedení"]
[919,"EE_Kabel / Vedení"]
[920,"EE_Kabel / Vedení"]
[921,"EE_Kabel / Vedení"]
[922,"EE_Kabel / Vedení"]
[923,"EE_Kabel / Vedení"]
[924,"EE_Kabel / Vedení"]
[925,"EE_Kabel / Vedení"]
[926,"EE_Kabel / Vedení"]
[927,"EE_Kabel / Vedení"]
[928,"EE_Kabel / Vedení"]
[929,"EE_Kabel / Vedení"]
[930,"EE_Kabel / Vedení"]
[931,"EE_Kabel / Vedení"]
[932,"EE_Kabel / Vedení"]
[933,"EE_Kabel / Vedení"]
[934,"EE_Kabel / Vedení"]
[935,"EE_Kabel / Vedení"]
[936,"EE_Kabel / Vedení"]
[937,"EE_Kabel / Vedení"]
[938,"EE_Kabel / Vedení"]
[939,"EE_Kabel / Vedení"]
[940,"EE_Kabel / Vedení"]
[941,"EE_Kabel / Vedení"]
[942,"EE_Kabel / Vedení"]
[943,"EE_Kabel / Vedení"]
[944,"EE_Kabel / Vedení"]
[945,"EE_Kabel / Vedení"]
[946,"EE_Kabel / Vedení"]
[947,"EE_Kabel / Vedení"]
[948,"EE_Kabel / Vedení"]
[949,"EE_Kabel / Vedení"]
[950,"EE_Kabel / Vedení"]
[951,"EE_Kabel / Vedení"]
[952,"EE_Kabel / Vedení"]
[953,"EE_Kabel / Vedení"]
[954,"EE_Kabel / Vedení"]
[955,"EE_Kabel / Vedení"]
[956,"EE_Kabel / Vedení"]
[957,"EE_Kabel / Vedení"]
[958,"EE_Kabel / Vedení"]
[959,"EE_Kabel / Vedení"]
[960,"EE_Kabel / Vedení"]
[961,"EE_Kabel / Vedení"]
[962,"EE_Kabel / Vedení"]
[963,"EE_Kabel / Vedení"]
[964,"EE_Kabel / Vedení"]
[965,"EE_Kabel / Vedení"]
[966,"EE_Kabel / Vedení"]
[967,"EE_Kabel / Vedení"]
[968,"EE_Kabel / Vedení"]
[969,"EE_Kabel / Vedení"]
[970,"EE_Kabel / Vedení"]
[971,"EE_Kabel / Vedení"]
[972,"EE_Kabel / Vedení"]
[973,"EE_Kabel / Vedení"]
[974,"EE_Kabel / Vedení"]
[975,"EE_Kabel / Vedení"]
[976,"EE_Kabel / Vedení"]
[977,"EE_Kabel / Vedení"]
[978,"EE_Kabel / Vedení"]
[979,"EE_Kabel / Vedení"]
[980,"EE_Kabel / Vedení"]
[981,"EE_Kabel / Vedení"]
[982,"EE_Kabel / Vedení"]
[983,"EE_Kabel / Vedení"]
[984,"EE_Kabel / Vedení"]
[985,"EE_Kabel / Vedení"]
[986,"EE_Kabel / Vedení"]
[987,"EE_Kabel / Vedení"]
[988,"EE_Kabel / Vedení"]
[989,"EE_Kabel / Vedení"]
[990,"EE_Kabel / Vedení"]
[991,"EE_Kabel / Vedení"]
[992,"EE_Kabel / Vedení"]
[993,"EE_Kabel / Vedení"]
[994,"EE_Kabel / Vedení"]
[995,"EE_Kabel / Vedení"]
[996,"EE_Kabel / Vedení"]
[997,"EE_Kabel / Vedení"]

{"sheet":"Návod na vyplnění","index":2,"n_rows":25,"n_cols":5,"rows_kept":25,"cut":false,"hidden":false,"merged":[[1,2,1,4],[24,2,27,4],[2,2,2,4],[3,2,3,4],[21,2,21,4]]}
[]
[]
[null,null,"Návod na vyplnění"]
[null,null,"Seznam kabelů"]
[null,null,"Název pole","Obsah pole","Vyplnění"]
[null,null,"Kód třídy MATRIO","EE_Kabel / Vedení","automatické"]
[null,null,"Označení kabelu","Projekční označení kabelu","volný text"]
[null,null,"Typ kabelu","Typ kabelu","volný text"]
[null,null,"Odkud","Terminál odkud","volný text"]
[null,null,"Kam","Terminál kam","volný text"]
[null,null,"BS","Bezpečnostní systém (vyplnit pouze pro nové kabely)\nPříslušnost k bezpečnostnímu systému - \"BS\", \"SSB\", \"SNB\" podle standardů MAAE (NS- R-1) - (EDU -viz. čl. 3.1.1.1 EGP 5030-T-008905, ETE - viz. čl. 3.1.1.1 dÚP 455)","výběr z číselníku"]
[null,null,"BT","Bezpečnostní třída  (vyplnit pouze pro nové kabely)\nZařazení do Bezpečnostní Třídy dle Vyhl. 329/2017 Sb. - 2, 3, \"Ne\" \n(EDU -viz. čl. 3.1.1.2 dÚP, ETE - viz. čl. 3.1.1.2 dÚP)","výběr z číselníku"]
[null,null,"Klasif. fce","Klasifikovaná funkce  (vyplnit pouze pro nové kabely)\nPro EDU - Max. klasifikovaná funkce připojeného zařízení dle ČSN EN 61226 - \"A\", \"B\", \"C\", \"Ne\" ( viz čl. 3.1.1.3 dÚP )\nPro ETE - klasifikace dle ČSN IEC61226 není použita, klasifikuje se dle IEEE 384  \"1E - bezpečnostní systémy, \"Non-1E - ostatní systémy ( viz čl. 3.1.1.4 dÚP )","výběr z číselníku"]
[null,null,"Požární vl.","Požárně technické vlastnosti  (vyplnit pouze pro nové kabely)\nPožárně technické vlastnosti - \" R\" -zvýšená odolnost proti šíření plamene, \"V\" - ohniodolný, \"běžný\" (dle dÚP), třída reakce na oheň nebo požadovaná třída funkčnosti při požáru dle Tabulky 1 (ČSN 73 0895) pro kabelovou trasu.","výběr z číselníku"]
[null,null,"Prostředí","Prostředí  (vyplnit pouze pro nové kabely)\nUvést požadavky na kvalifikaci z hlediska podmínek prostředí (teplota, radiace, dekontaminace)","výběr z číselníku"]
[null,null,"SEIK","Seismicita trasy  (vyplnit pouze pro nové kabely)\nSeismická odolnost kabelových konstrukcí - Seismická kategorie: „1a“, \"1c\", \"N\" viz. dÚP","výběr z číselníku"]
[null,null,"Délka","Délka v m  (vyplnit pouze pro nové kabely)","volný text"]
[null,null,"Segregační skupina","Uvést  segregační skupinu - viz. dÚP\n (vyplnit pouze pro nové kabely)","výběr z číselníku"]
[null,null,"Separační skupina","Uvést  separační skupinu - viz. dÚP\n (vyplnit pouze pro nové kabely)","výběr z číselníku"]
[null,null,"Změna","Změna dle JMA: N = Nový, S = Stávající (např.jiné připojení žil), Z = Zrušený","výběr z číselníku"]
[null,null,"Poznámka","Poznámka","volný text"]
[null,null,"Tabulku \"Seznam kabelů\" vyplňute od prvního řádku, nevynechávejte řádky a pro pohyb použijte rolování."]
[]
[]
[null,null,"UPOZORNĚNÍ:\nTISK JE PŘEDNASTAVEN, tisknou se pouze řádky, kde je vyplněný údaj ve sloupci \" Označení kabelu\". \nFormáty tisku jsou nastavené dle velikosti tabulky. Tabulka \"Seznam kabelů\" se tiskne na  formát A3 \"na šířku\". "]

{"sheet":"Číselníky","index":3,"n_rows":26,"n_cols":22,"rows_kept":26,"cut":false,"hidden":false,"merged":[[1,2,1,21],[2,2,2,21],[3,1,5,1]]}
[]
[null,null,"Použité číselníky"]
[null,null,"Vysvětlivky:  Nad názvem atributu: TE+DU = číselník je stejný pro obě elektrárny,  TE nebo DU = číselník je pro každou elektrárnu specifický,  TE <>DU = podmíněné prohození dle vybrané lokality na titulním listu"]
[null,"Aktuálně vybraná lokalita na Titulním listu",1,2,3,4,5,6,7,8,9,10,11,12,13,14,15,16,17,18,19,20]
[null,null,null,"TE+DU","TE","DU","TE <>DU","TE+DU","TE+DU","TE+DU","TE+DU","TE+DU","TE","DU","TE <>DU","TE","DU","TE <>DU","TE","DU","TE <>DU","TE+DU"]
[null,null,"Lokalita","Stupeň","Typ/Podtyp (ETE)","Typ/Podtyp (EDU)","Typ/Podtyp ","BT","SEIK","Změna dle JMA","BS","Prostředí","klasif. fce","klasif. fce","klasif. fce","Seg. Skupina ETE","Seg. Skupina EDU","Seg. Skupina ","Sep. Skupina ETE","Sep. Skupina EDU","Sep. skupina","RaS"]
[null,{"$f":"'Titulní list'!CD14","v":" "}," "," "," "," ",{"$f":"IF($B$7=\"ETE\",E7,IF($B$7=\"EDU\",F7,\" \"))","v":" "}," "," "," "," "," "," "," ",{"$f":"IF($B$7=\"ETE\",M7,N7)","v":" "}," "," ",{"$f":"IF($B$7=\"ETE\",P7,Q7)","v":" "}," "," ",{"$f":"IF($B$7=\"ETE\",S7,T7)","v":" "}," "]
[null,null,"ETE","PDPS","PPPT","H16T ",{"$f":"IF($B$7=\"ETE\",E8,IF($B$7=\"EDU\",F8,\" \"))","v":" "},"NE","1a","N","BS","L","1E","A",{"$f":"IF($B$7=\"ETE\",M8,N8)","v":"A"},"WH","WA","WA","A","1V","1V","A"]
[null,null,"EDU","DoSP","PPPS","H16S",{"$f":"IF($B$7=\"ETE\",E9,IF($B$7=\"EDU\",F9,\" \"))","v":" "},"2","1c","S","SSB","H","N-1E","B",{"$f":"IF($B$7=\"ETE\",M9,N9)","v":"B"},"WL","WB","WB","B","1W","1W","P"]
[null,null,null,"PDSŘ","EDST/SKT","H01S",{"$f":"IF($B$7=\"ETE\",E10,IF($B$7=\"EDU\",F10,\" \"))","v":" "},"3","NE","Z","SNB","M"," ","C",{"$f":"IF($B$7=\"ETE\",M10,N10)","v":"C"},"WP","WC","WC","C","1X","1X","N"]
[null,null,null,null,"EDSS/SKT","H01S",{"$f":"IF($B$7=\"ETE\",E11,IF($B$7=\"EDU\",F11,\" \"))","v":" "},null,null,"V",null,"O"," ","Ne",{"$f":"IF($B$7=\"ETE\",M11,N11)","v":"Ne"},"WS","WD","WD","V","1N","1N"]
[null,null,null,null,null,null,null,null,null,"M",null,"N",null,null,null,"WV","WL","WL","W","2V","2V"]
[null,null,null,null,null,null,null,null,null,null,null,null,null,null,null,"WC","WP","WP","X","2W","2W"]
[null,null,null,null,null,null,null,null,null,null,null,null,null,null,null,"WT","WT","WT","N","2X","2X"]
[null,null,null,null,null,null,null,null,null,null,null,null,null,null,null,"WD","WR","WR"," ","2N","2N"]
[null,null,null,null,null,null,null,null,null,null,null,null,null,null,null,"WK","WK","WK"," ","3V","3V"]
[null,null,null,null,null,null,null,null,null,null,null,null,null,null,null,"WM","WF","WF"," ","3W","3W"]
[null,null,null,null,null,null,null,null,null,null,null,null,null,null,null,"WX","WX","WX"," ","3X","3X"]
[null,null,null,null,null,null,null,null,null,null,null,null,null,null,null,"WR"," "," "," ","3N","3N"]
[null,null,null,null,null,null,null,null,null,null,null,null,null,null,null,"WF"," "," "," ","4V","4V"]
[null,null,null,null,null,null,null,null,null,null,null,null,null,null,null,"WE"," "," "," ","4W","4W"]
[null,null,null,null,null,null,null,null,null,null,null,null,null,null,null,"WW"," "," "," ","4X","4X"]
[null,null,null,null,null,null,null,null,null,null,null,null,null,null,null,"WZ"," "," "," ","4N","4N"]
[null,null,null,null,null,null,null,null,null,null,null,null,null,null,null,"WN"," "," "," ","0N","0N"]
[null,null,null,null,null,null,null,null,null,null,null,null,null,null,null,null,null,null," ","7N","7N"]
[null,null,null,null,null,null,null,null,null,null,null,null,null,null,null,null,null,null," ","9N","9N"]